[Event "*** Titled Tuesday Blitz"]
[Site "Chess.com"]
[Date "2018.12.04"]
[Round "6"]
[White "Robert_Chessmood"]
[Black "GadimbayliA"]
[Result "0-1"]
[WhiteElo "2935"]
[BlackElo "2689"]
[TimeControl "180+2"]
[EndTime "14:22:19 PST"]
[Termination "GadimbayliA won by resignation"]

1. e4 {[%clk 0:03:01.9]} 1... e6 {[%clk 0:02:52.3]} 2. d4 {[%clk 0:03:02.5]}
2... d5 {[%clk 0:02:48.8]} 3. Nc3 {[%clk 0:03:03.7]} 3... Nc6 {[%clk 0:02:45.5]}
4. Nf3 {[%clk 0:03:03.8]} 4... Nf6 {[%clk 0:02:43.6]} 5. Bd3 {[%clk 0:03:04.7]}
5... Bb4 {[%clk 0:02:43.4]} 6. O-O {[%clk 0:03:04.6]} 6... Bxc3 {[%clk 0:02:39]}
7. exd5 {[%clk 0:03:05.5]} 7... Nxd4 {[%clk 0:02:30.5]} 8. bxc3 {[%clk
0:03:05.8]} 8... Nxf3+ {[%clk 0:02:31.5]} 9. Qxf3 {[%clk 0:03:07.7]} 9... Qxd5
{[%clk 0:02:23.7]} 10. Qg3 {[%clk 0:03:08.6]} 10... Bd7 {[%clk 0:02:20.7]} 11.
Be3 {[%clk 0:02:38.8]} 11... Bc6 {[%clk 0:02:14]} 12. Rfd1 {[%clk 0:02:31.3]}
12... O-O-O {[%clk 0:02:05]} 13. f3 {[%clk 0:02:10.4]} 13... Qd6 {[%clk
0:01:50.3]} 14. Qf2 {[%clk 0:02:00.4]} 14... Nd5 {[%clk 0:01:49.3]} 15. Bf1
{[%clk 0:01:46.2]} 15... Qa3 {[%clk 0:01:43.9]} 16. Bc5 {[%clk 0:01:18.5]} 16...
Qa4 {[%clk 0:01:37.6]} 17. Bd4 {[%clk 0:01:13.7]} 17... f6 {[%clk 0:01:33.4]}
18. Qe1 {[%clk 0:01:05.6]} 18... e5 {[%clk 0:01:30.7]} 19. Bf2 {[%clk 0:01:06]}
19... Rd7 {[%clk 0:01:31.6]} 20. c4 {[%clk 0:01:01.4]} 20... Nb4 {[%clk
0:01:26.7]} 21. Rxd7 {[%clk 0:01:00.8]} 21... Bxd7 {[%clk 0:01:27]} 22. Qc3
{[%clk 0:00:57.9]} 22... Rd8 {[%clk 0:01:24.5]} 23. Rb1 {[%clk 0:00:52.2]} 23...
Nc6 {[%clk 0:01:19.5]} 24. Rb3 {[%clk 0:00:44.6]} 24... a6 {[%clk 0:01:12.3]}
25. Qb2 {[%clk 0:00:44.1]} 25... Be6 {[%clk 0:01:09.4]} 26. Qb1 {[%clk
0:00:17.8]} 26... b6 {[%clk 0:01:06.6]} 27. Bxb6 {[%clk 0:00:17.7]} 27... cxb6
{[%clk 0:01:04.8]} 28. Rxb6 {[%clk 0:00:19.6]} 28... Kc7 {[%clk 0:01:03.5]} 29.
Rb7+ {[%clk 0:00:20.3]} 29... Kc8 {[%clk 0:00:56.8]} 30. Qb6 {[%clk 0:00:20.5]}
30... Rd7 {[%clk 0:00:52.9]} 31. Rxd7 {[%clk 0:00:17.1]} 31... Bxd7 {[%clk
0:00:54]} 32. c5 {[%clk 0:00:14.6]} 32... Nb8 {[%clk 0:00:52.7]} 33. c3 {[%clk
0:00:12]} 33... Qc6 {[%clk 0:00:50.2]} 34. Qb4 {[%clk 0:00:12.9]} 34... Be6
{[%clk 0:00:49.4]} 35. a4 {[%clk 0:00:08.8]} 35... Nd7 {[%clk 0:00:48.7]} 36.
Qh4 {[%clk 0:00:08]} 36... Qxc5+ {[%clk 0:00:45.8]} 37. Kh1 {[%clk 0:00:09.3]}
37... Qxc3 {[%clk 0:00:45.8]} 38. Bxa6+ {[%clk 0:00:09.8]} 38... Kd8 {[%clk
0:00:45.4]} 39. h3 {[%clk 0:00:10.1]} 39... Qc1+ {[%clk 0:00:43.4]} 40. Kh2
{[%clk 0:00:11.6]} 40... Qf4+ {[%clk 0:00:44.6]} 41. Qxf4 {[%clk 0:00:12.7]}
41... exf4 {[%clk 0:00:46.5]} 42. g3 {[%clk 0:00:13.3]} 42... fxg3+ {[%clk
0:00:45]} 43. Kxg3 {[%clk 0:00:15.2]} 43... Nc5 {[%clk 0:00:44.8]} 44. Bb5
{[%clk 0:00:16.6]} 44... Bd7 {[%clk 0:00:45.9]} 45. Bc4 {[%clk 0:00:18]} 45...
Bxa4 {[%clk 0:00:45.5]} 46. Bg8 {[%clk 0:00:19.5]} 46... h6 {[%clk 0:00:45.8]}
47. Kg4 {[%clk 0:00:21]} 47... Ke7 {[%clk 0:00:45.8]} 48. h4 {[%clk 0:00:19.8]}
48... Bd7+ {[%clk 0:00:46.3]} 49. Kh5 {[%clk 0:00:19.6]} 49... Be8+ {[%clk
0:00:47.4]} 50. Kg4 {[%clk 0:00:20.7]} 50... Bf7 {[%clk 0:00:48.8]} 51. Bh7
{[%clk 0:00:21.7]} 51... g6 {[%clk 0:00:49.6]} 52. h5 {[%clk 0:00:20.1]} 52...
f5+ {[%clk 0:00:50.2]} 53. Kg3 {[%clk 0:00:18.8]} 53... Kf6 {[%clk 0:00:50.9]}
54. hxg6 {[%clk 0:00:20.2]} 54... Bxg6 {[%clk 0:00:52.3]} 55. Bg8 {[%clk
0:00:21.5]} 55... Bf7 {[%clk 0:00:53.7]} 56. Bh7 {[%clk 0:00:22.4]} 56... Ne6
{[%clk 0:00:55.3]} 57. f4 {[%clk 0:00:22.7]} 57... Nf8 {[%clk 0:00:56.2]} 58.
Bxf5 {[%clk 0:00:24]} 58... Kxf5 {[%clk 0:00:58.1]} 59. Kh4 {[%clk 0:00:25.9]}
59... Ne6 {[%clk 0:00:58.7]} 60. Kh3 {[%clk 0:00:27.8]} 60... Nxf4+ {[%clk
0:01:00]} 61. Kh4 {[%clk 0:00:29.7]} 61... h5 {[%clk 0:01:00.5]} 62. Kg3 {[%clk
0:00:31]} 62... Kg5 {[%clk 0:01:02.4]} 63. Kh2 {[%clk 0:00:32.9]} 63... h4
{[%clk 0:01:03.7]} 64. Kh1 {[%clk 0:00:34.8]} 64... Kg4 {[%clk 0:01:05.6]} 0-1

[Event "*** Titled Tuesday Blitz"]
[Site "Chess.com"]
[Date "2018.12.04"]
[Round "6"]
[White "M1711"]
[Black "Fins0905"]
[Result "1-0"]
[WhiteElo "2488"]
[BlackElo "2632"]
[TimeControl "180+2"]
[EndTime "14:22:20 PST"]
[Termination "M1711 won by resignation"]

1. e4 {[%clk 0:03:01.9]} 1... d5 {[%clk 0:03:00.3]} 2. exd5 {[%clk 0:03:02.2]}
2... Qxd5 {[%clk 0:03:02.2]} 3. Qf3 {[%clk 0:03:03.5]} 3... Nf6 {[%clk
0:02:54.7]} 4. Qxd5 {[%clk 0:03:02.6]} 4... Nxd5 {[%clk 0:02:55.8]} 5. Nc3
{[%clk 0:03:04.1]} 5... Nb4 {[%clk 0:02:54.2]} 6. Kd1 {[%clk 0:02:59.2]} 6...
Bf5 {[%clk 0:02:52.4]} 7. d3 {[%clk 0:02:55.7]} 7... Nd7 {[%clk 0:02:46.6]} 8.
Nf3 {[%clk 0:02:46.1]} 8... O-O-O {[%clk 0:02:43.8]} 9. Be2 {[%clk 0:02:43.7]}
9... e6 {[%clk 0:02:42.5]} 10. Be3 {[%clk 0:02:44]} 10... Nb6 {[%clk 0:02:32.8]}
11. Kd2 {[%clk 0:02:39.6]} 11... Nc4+ {[%clk 0:02:19.4]} 12. Kc1 {[%clk
0:02:37.4]} 12... Nxe3 {[%clk 0:02:19.6]} 13. fxe3 {[%clk 0:02:39.3]} 13... Bc5
{[%clk 0:02:20.9]} 14. e4 {[%clk 0:02:36.9]} 14... Bg6 {[%clk 0:02:19.2]} 15. a3
{[%clk 0:02:37]} 15... Nc6 {[%clk 0:02:19.5]} 16. Kb1 {[%clk 0:02:35.6]} 16...
f5 {[%clk 0:02:10.5]} 17. Nh4 {[%clk 0:02:20.1]} 17... Nd4 {[%clk 0:02:01.5]}
18. Nxg6 {[%clk 0:02:16]} 18... hxg6 {[%clk 0:02:02.4]} 19. Bd1 {[%clk
0:02:03.7]} 19... Bd6 {[%clk 0:01:52.9]} 20. h3 {[%clk 0:02:00.2]} 20... g5
{[%clk 0:01:52.8]} 21. Rf1 {[%clk 0:01:53.2]} 21... Rdf8 {[%clk 0:01:39.4]} 22.
exf5 {[%clk 0:01:34.4]} 22... Rxf5 {[%clk 0:01:27.3]} 23. Rxf5 {[%clk
0:01:34.1]} 23... exf5 {[%clk 0:01:28.5]} 24. Ne2 {[%clk 0:01:34.7]} 24... Ne6
{[%clk 0:01:02.7]} 25. c3 {[%clk 0:01:29.2]} 25... g4 {[%clk 0:00:58.4]} 26.
hxg4 {[%clk 0:01:21.6]} 26... fxg4 {[%clk 0:01:00.3]} 27. Bb3 {[%clk 0:01:22.2]}
27... Nc5 {[%clk 0:00:46.4]} 28. Kc2 {[%clk 0:01:16.1]} 28... Rh2 {[%clk
0:00:42.2]} 29. Rg1 {[%clk 0:01:13.5]} 29... Kd7 {[%clk 0:00:35.6]} 30. Bc4
{[%clk 0:01:03.8]} 30... c6 {[%clk 0:00:30.4]} 31. b4 {[%clk 0:00:53.7]} 31...
Ne6 {[%clk 0:00:30.9]} 32. Bxe6+ {[%clk 0:00:48.1]} 32... Kxe6 {[%clk
0:00:32.8]} 33. Nd4+ {[%clk 0:00:50]} 33... Kd5 {[%clk 0:00:24.7]} 34. Nf5
{[%clk 0:00:47.8]} 34... Be5 {[%clk 0:00:20.9]} 35. Ne3+ {[%clk 0:00:48.3]}
35... Kd6 {[%clk 0:00:18.1]} 36. Nxg4 {[%clk 0:00:48.6]} 36... Rh4 {[%clk
0:00:19.5]} 37. Ne3 {[%clk 0:00:49.1]} 37... Rh2 {[%clk 0:00:16.8]} 38. d4
{[%clk 0:00:47.2]} 38... Bf4 {[%clk 0:00:11.9]} 39. Nf5+ {[%clk 0:00:46.7]}
39... Kd5 {[%clk 0:00:09.8]} 40. Kd3 {[%clk 0:00:44.1]} 40... g6 {[%clk
0:00:09.1]} 41. Ne7+ {[%clk 0:00:38.9]} 41... Ke6 {[%clk 0:00:07.8]} 42. Nxg6
{[%clk 0:00:40.1]} 42... Bg3 {[%clk 0:00:09.2]} 43. Ke4 {[%clk 0:00:37.2]} 43...
Kf6 {[%clk 0:00:07.4]} 44. Kf3 {[%clk 0:00:33]} 44... Bd6 {[%clk 0:00:05.6]} 45.
Nf4 {[%clk 0:00:27.3]} 45... Rh8 {[%clk 0:00:05.2]} 46. Nd3 {[%clk 0:00:20.8]}
46... Kg5 {[%clk 0:00:04]} 47. g4 {[%clk 0:00:16.7]} 47... Rh3+ {[%clk
0:00:04.6]} 48. Ke2 {[%clk 0:00:15.9]} 48... Rh2+ {[%clk 0:00:05.1]} 49. Nf2
{[%clk 0:00:15.1]} 49... Bf4 {[%clk 0:00:04.2]} 50. Kf3 {[%clk 0:00:13.8]} 50...
Bd6 {[%clk 0:00:05.1]} 51. Ne4+ {[%clk 0:00:14.5]} 51... Kg6 {[%clk 0:00:06]}
52. Nxd6 {[%clk 0:00:15.7]} 1-0

[Event "*** Titled Tuesday Blitz"]
[Site "Chess.com"]
[Date "2018.12.04"]
[Round "6"]
[White "BillForster"]
[Black "Morshynska"]
[Result "0-1"]
[WhiteElo "1717"]
[BlackElo "2071"]
[TimeControl "180+2"]
[EndTime "14:22:23 PST"]
[Termination "Morshynska won on time"]

1. d4 {[%clk 0:03:01.9]} 1... Nf6 {[%clk 0:03:00.3]} 2. c4 {[%clk 0:03:02]} 2...
e6 {[%clk 0:03:00.9]} 3. Nc3 {[%clk 0:03:01.6]} 3... Bb4 {[%clk 0:03:01]} 4. e3
{[%clk 0:03:01.9]} 4... b6 {[%clk 0:03:01.5]} 5. Nf3 {[%clk 0:02:44.8]} 5... Bb7
{[%clk 0:03:01.6]} 6. Bd3 {[%clk 0:02:44]} 6... Ne4 {[%clk 0:03:01.1]} 7. Qc2
{[%clk 0:02:39.8]} 7... f5 {[%clk 0:03:00.4]} 8. O-O {[%clk 0:02:39.7]} 8...
Bxc3 {[%clk 0:03:00.8]} 9. bxc3 {[%clk 0:02:39.2]} 9... O-O {[%clk 0:02:51.9]}
10. Ba3 {[%clk 0:02:18.4]} 10... c5 {[%clk 0:02:41.3]} 11. Nd2 {[%clk
0:02:15.6]} 11... Nxd2 {[%clk 0:01:49.1]} 12. Qxd2 {[%clk 0:02:13.8]} 12... d6
{[%clk 0:01:45.8]} 13. f3 {[%clk 0:02:07.8]} 13... Nc6 {[%clk 0:01:43.1]} 14.
Rae1 {[%clk 0:02:01.2]} 14... e5 {[%clk 0:01:20.1]} 15. Qc2 {[%clk 0:01:06.3]}
15... Qf6 {[%clk 0:01:11.2]} 16. d5 {[%clk 0:01:01]} 16... Na5 {[%clk
0:01:04.8]} 17. e4 {[%clk 0:00:54.8]} 17... f4 {[%clk 0:00:41.5]} 18. Bc1 {[%clk
0:00:47.8]} 18... Ba6 {[%clk 0:00:39.6]} 19. Qe2 {[%clk 0:00:47]} 19... g5
{[%clk 0:00:39.5]} 20. g4 {[%clk 0:00:37.8]} 20... Kg7 {[%clk 0:00:37.7]} 21.
Kg2 {[%clk 0:00:31.9]} 21... h5 {[%clk 0:00:33]} 22. h3 {[%clk 0:00:29.6]} 22...
Rh8 {[%clk 0:00:33.8]} 23. Rh1 {[%clk 0:00:28.3]} 23... Qe7 {[%clk 0:00:33.2]}
24. h4 {[%clk 0:00:25.2]} 24... gxh4 {[%clk 0:00:31.9]} 25. Qf2 {[%clk
0:00:21.3]} 25... hxg4 {[%clk 0:00:31.8]} 26. fxg4 {[%clk 0:00:16.7]} 26... Qg5
{[%clk 0:00:29.6]} 27. Qe2 {[%clk 0:00:12.7]} 27... h3+ {[%clk 0:00:21.7]} 28.
Rxh3 {[%clk 0:00:12.2]} 28... Rxh3 {[%clk 0:00:23.6]} 29. Kxh3 {[%clk
0:00:13.1]} 29... Rh8+ {[%clk 0:00:25.5]} 30. Kg2 {[%clk 0:00:13.4]} 30... Rh4
{[%clk 0:00:25]} 31. Rh1 {[%clk 0:00:10.6]} 31... Rxg4+ {[%clk 0:00:21.7]} 32.
Kf1 {[%clk 0:00:10.6]} 32... Kg8 {[%clk 0:00:15.7]} 33. Qh2 {[%clk 0:00:09.9]}
33... Qg7 {[%clk 0:00:15.1]} 34. Qh5 {[%clk 0:00:06.9]} 34... Kf8 {[%clk
0:00:14.4]} 35. Qh8+ {[%clk 0:00:06.8]} 35... Qxh8 {[%clk 0:00:15]} 36. Rxh8+
{[%clk 0:00:08.2]} 36... Rg8 {[%clk 0:00:16.9]} 37. Rh7 {[%clk 0:00:08.4]} 37...
Rg7 {[%clk 0:00:17.4]} 38. Rh8+ {[%clk 0:00:09.2]} 38... Kf7 {[%clk 0:00:18.1]}
39. Ra8 {[%clk 0:00:07.9]} 39... Kg6 {[%clk 0:00:19.2]} 40. Rd8 {[%clk
0:00:08.2]} 40... Nb7 {[%clk 0:00:18.3]} 41. Ra8 {[%clk 0:00:08]} 41... Na5
{[%clk 0:00:18.4]} 42. Rd8 {[%clk 0:00:08.9]} 42... Nxc4 {[%clk 0:00:19.6]} 43.
Bxc4 {[%clk 0:00:08.5]} 43... Bxc4+ {[%clk 0:00:21.5]} 44. Kf2 {[%clk 0:00:07]}
44... Rh7 {[%clk 0:00:20.7]} 45. Rxd6+ {[%clk 0:00:07]} 45... Kg5 {[%clk
0:00:22.6]} 46. Re6 {[%clk 0:00:05.3]} 46... Kg4 {[%clk 0:00:22]} 47. Rxe5
{[%clk 0:00:05.5]} 47... Rh2+ {[%clk 0:00:22.1]} 48. Kg1 {[%clk 0:00:05]} 48...
Rc2 {[%clk 0:00:22.1]} 49. Ba3 {[%clk 0:00:02.3]} 49... Rxc3 {[%clk 0:00:22.3]}
0-1

[Event "*** Titled Tuesday Blitz"]
[Site "Chess.com"]
[Date "2018.12.04"]
[Round "6"]
[White "LawrenceTrent"]
[Black "hansen"]
[Result "0-1"]
[WhiteElo "2475"]
[BlackElo "2769"]
[TimeControl "180+2"]
[EndTime "14:22:35 PST"]
[Termination "hansen won by resignation"]

1. e4 {[%clk 0:03:01.9]} 1... c5 {[%clk 0:02:59.2]} 2. Nf3 {[%clk 0:02:57.3]}
2... e6 {[%clk 0:03:00.3]} 3. Nc3 {[%clk 0:02:55.5]} 3... a6 {[%clk 0:03:01.2]}
4. d4 {[%clk 0:02:54.9]} 4... cxd4 {[%clk 0:03:03.1]} 5. Nxd4 {[%clk 0:02:50.9]}
5... Qc7 {[%clk 0:03:02.3]} 6. Qf3 {[%clk 0:02:50.2]} 6... Nc6 {[%clk
0:03:02.4]} 7. Nxc6 {[%clk 0:02:42.9]} 7... bxc6 {[%clk 0:03:01.9]} 8. Bd3
{[%clk 0:02:42.7]} 8... Nf6 {[%clk 0:03:00.9]} 9. Bf4 {[%clk 0:02:36]} 9... e5
{[%clk 0:03:01.1]} 10. Bg5 {[%clk 0:02:29.2]} 10... Be7 {[%clk 0:03:01.9]} 11.
O-O {[%clk 0:02:26.3]} 11... Rb8 {[%clk 0:03:00.9]} 12. b3 {[%clk 0:02:26.7]}
12... O-O {[%clk 0:02:57.6]} 13. Bc4 {[%clk 0:02:26.4]} 13... a5 {[%clk
0:02:57.1]} 14. Rad1 {[%clk 0:02:23.9]} 14... h6 {[%clk 0:02:42.6]} 15. Bh4
{[%clk 0:02:06]} 15... d6 {[%clk 0:02:41.9]} 16. h3 {[%clk 0:02:04.5]} 16... Be6
{[%clk 0:02:20.6]} 17. Qe2 {[%clk 0:01:59.9]} 17... Bxc4 {[%clk 0:02:19.2]} 18.
Qxc4 {[%clk 0:02:00.6]} 18... Rb4 {[%clk 0:02:20.8]} 19. Qe2 {[%clk 0:01:52.6]}
19... Rd4 {[%clk 0:01:24.9]} 20. Bxf6 {[%clk 0:01:34.2]} 20... Bxf6 {[%clk
0:01:24.9]} 21. Qa6 {[%clk 0:01:32.9]} 21... Rb8 {[%clk 0:01:17.4]} 22. Rxd4
{[%clk 0:01:10.6]} 22... exd4 {[%clk 0:01:18.2]} 23. Ne2 {[%clk 0:01:11.3]}
23... Rb5 {[%clk 0:01:11]} 24. a4 {[%clk 0:01:05.4]} 24... Rb4 {[%clk
0:01:08.4]} 25. Rd1 {[%clk 0:01:02.6]} 25... Be5 {[%clk 0:01:07]} 26. Nc1 {[%clk
0:00:57.5]} 26... Rb8 {[%clk 0:00:36.1]} 27. Nd3 {[%clk 0:00:56.8]} 27... Re8
{[%clk 0:00:25.2]} 28. Re1 {[%clk 0:00:53.8]} 28... Rb8 {[%clk 0:00:20]} 29. g3
{[%clk 0:00:43.2]} 29... h5 {[%clk 0:00:19.2]} 30. h4 {[%clk 0:00:37]} 30... Bf6
{[%clk 0:00:16.3]} 31. Kg2 {[%clk 0:00:33.9]} 31... g6 {[%clk 0:00:17.2]} 32.
Nf4 {[%clk 0:00:28.8]} 32... Kg7 {[%clk 0:00:16.2]} 33. Qc4 {[%clk 0:00:27.9]}
33... Qb7 {[%clk 0:00:11.7]} 34. f3 {[%clk 0:00:22.6]} 34... Re8 {[%clk
0:00:12.6]} 35. Re2 {[%clk 0:00:16.7]} 35... Qb6 {[%clk 0:00:10.2]} 36. Qd3
{[%clk 0:00:16.9]} 36... Qc5 {[%clk 0:00:10.4]} 37. Nh3 {[%clk 0:00:17.1]} 37...
Be5 {[%clk 0:00:08.2]} 38. f4 {[%clk 0:00:17.3]} 38... Bf6 {[%clk 0:00:09.2]}
39. Nf2 {[%clk 0:00:19.2]} 39... Qb6 {[%clk 0:00:06.6]} 40. Qf3 {[%clk
0:00:19.3]} 40... c5 {[%clk 0:00:07.3]} 41. Nd3 {[%clk 0:00:19.6]} 41... Qa6
{[%clk 0:00:07.5]} 42. Nb2 {[%clk 0:00:20.2]} 42... Qc8 {[%clk 0:00:04]} 43. Nc4
{[%clk 0:00:21.1]} 43... Qc7 {[%clk 0:00:05.3]} 44. e5 {[%clk 0:00:19.3]} 44...
dxe5 {[%clk 0:00:06.1]} 45. fxe5 {[%clk 0:00:21.2]} 45... Bxe5 {[%clk
0:00:06.9]} 46. Qe4 {[%clk 0:00:22.1]} 46... f6 {[%clk 0:00:08]} 47. Qd5 {[%clk
0:00:21.3]} 47... Rd8 {[%clk 0:00:08.6]} 48. Qe4 {[%clk 0:00:21.6]} 48... Re8
{[%clk 0:00:08.9]} 49. Qd5 {[%clk 0:00:22.7]} 49... Re7 {[%clk 0:00:10.3]} 50.
Qa8 {[%clk 0:00:20.6]} 50... Qd7 {[%clk 0:00:08.4]} 51. Nb6 {[%clk 0:00:17.7]}
51... Qg4 {[%clk 0:00:08.1]} 52. Qe4 {[%clk 0:00:18.4]} 52... Qxg3+ {[%clk
0:00:08.7]} 53. Kf1 {[%clk 0:00:19.4]} 53... Qh3+ {[%clk 0:00:07.4]} 54. Ke1
{[%clk 0:00:20.7]} 54... Bg3+ {[%clk 0:00:08]} 55. Kd1 {[%clk 0:00:22.6]} 55...
Rxe4 {[%clk 0:00:08.9]} 56. Rxe4 {[%clk 0:00:23.8]} 0-1

[Event "*** Titled Tuesday Blitz"]
[Site "Chess.com"]
[Date "2018.12.04"]
[Round "6"]
[White "vovachesss"]
[Black "Fighterman91"]
[Result "1-0"]
[WhiteElo "2502"]
[BlackElo "2599"]
[TimeControl "180+2"]
[EndTime "14:22:37 PST"]
[Termination "vovachesss won by resignation"]

1. Nf3 {[%clk 0:03:01.9]} 1... c5 {[%clk 0:03:00.1]} 2. b3 {[%clk 0:03:02.8]}
2... Nc6 {[%clk 0:02:56.5]} 3. Bb2 {[%clk 0:03:03.1]} 3... d6 {[%clk 0:02:57.4]}
4. e3 {[%clk 0:03:04.1]} 4... e5 {[%clk 0:02:57.8]} 5. c4 {[%clk 0:02:39.7]}
5... Nf6 {[%clk 0:02:55]} 6. d4 {[%clk 0:02:34.6]} 6... e4 {[%clk 0:02:49.6]} 7.
d5 {[%clk 0:02:35.5]} 7... Ne7 {[%clk 0:02:33.2]} 8. Ng5 {[%clk 0:02:17.8]} 8...
Ng6 {[%clk 0:02:30.8]} 9. Nd2 {[%clk 0:02:16.7]} 9... Bf5 {[%clk 0:02:29.9]} 10.
Qc2 {[%clk 0:02:17.2]} 10... Qe7 {[%clk 0:02:19.7]} 11. f3 {[%clk 0:01:39.3]}
11... exf3 {[%clk 0:01:42.6]} 12. Qxf5 {[%clk 0:01:37.8]} 12... Qxe3+ {[%clk
0:01:44.2]} 13. Kd1 {[%clk 0:01:39.2]} 13... Nh4 {[%clk 0:01:45.6]} 14. Qh3
{[%clk 0:00:36.3]} 14... Qxg5 {[%clk 0:01:45]} 15. gxf3 {[%clk 0:00:33.5]} 15...
Nf5 {[%clk 0:01:33.7]} 16. Bd3 {[%clk 0:00:32.9]} 16... Nd4 {[%clk 0:01:24]} 17.
Re1+ {[%clk 0:00:25.3]} 17... Be7 {[%clk 0:01:25.3]} 18. Ne4 {[%clk 0:00:09.2]}
18... Nxe4 {[%clk 0:01:25.9]} 19. Rxe4 {[%clk 0:00:09.2]} 19... Kd8 {[%clk
0:01:17]} 20. Bxd4 {[%clk 0:00:05.7]} 20... cxd4 {[%clk 0:01:18.9]} 21. Kc2
{[%clk 0:00:07]} 21... Bf6 {[%clk 0:00:39.3]} 22. Rae1 {[%clk 0:00:08.3]} 22...
g6 {[%clk 0:00:40.8]} 23. Rg4 {[%clk 0:00:07]} 23... Qh5 {[%clk 0:00:37]} 24.
Qxh5 {[%clk 0:00:08.3]} 24... gxh5 {[%clk 0:00:38.7]} 25. Rf4 {[%clk 0:00:10]}
25... Bg5 {[%clk 0:00:35.2]} 26. Rxf7 {[%clk 0:00:11.1]} 26... Be3 {[%clk
0:00:36.9]} 27. Rxb7 {[%clk 0:00:11.4]} 27... Rg8 {[%clk 0:00:34.3]} 28. Bxh7
{[%clk 0:00:11]} 28... Rg2+ {[%clk 0:00:35.9]} 29. Kd3 {[%clk 0:00:10]} 29...
Rxh2 {[%clk 0:00:33]} 30. Ke4 {[%clk 0:00:06.5]} 30... a5 {[%clk 0:00:28.6]} 31.
Kf5 {[%clk 0:00:07.5]} 31... Rg2 {[%clk 0:00:26.9]} 32. Ke6 {[%clk 0:00:08.3]}
32... Rg5 {[%clk 0:00:22.8]} 33. Kxd6 {[%clk 0:00:07.8]} 33... Rc8 {[%clk
0:00:22.8]} 34. Rd7+ {[%clk 0:00:05.6]} 34... Ke8 {[%clk 0:00:24.2]} 35. Re7+
{[%clk 0:00:06.8]} 35... Kf8 {[%clk 0:00:25.1]} 36. Re4 {[%clk 0:00:06.9]} 36...
Kg7 {[%clk 0:00:23.1]} 37. Re7+ {[%clk 0:00:06.4]} 37... Kh6 {[%clk 0:00:24.2]}
38. Kd7 {[%clk 0:00:06.4]} 38... Ra8 {[%clk 0:00:22.4]} 39. Be4 {[%clk
0:00:06.3]} 39... Ra7+ {[%clk 0:00:23.8]} 40. Ke6 {[%clk 0:00:07.7]} 40... Rxe7+
{[%clk 0:00:17.2]} 41. Kxe7 {[%clk 0:00:09.6]} 41... Bd2 {[%clk 0:00:04.8]} 42.
Rd1 {[%clk 0:00:08.2]} 42... Bb4+ {[%clk 0:00:06.4]} 43. Kd7 {[%clk 0:00:09.5]}
43... Rg7+ {[%clk 0:00:06.8]} 44. Kc6 {[%clk 0:00:10.9]} 44... h4 {[%clk
0:00:06.5]} 45. c5 {[%clk 0:00:11.6]} 45... h3 {[%clk 0:00:08]} 46. d6 {[%clk
0:00:12.6]} 46... h2 {[%clk 0:00:09.5]} 47. Rh1 {[%clk 0:00:13.5]} 47... Rg5
{[%clk 0:00:09.2]} 48. Rxh2+ {[%clk 0:00:14.8]} 48... Kg7 {[%clk 0:00:11.1]} 49.
Rh7+ {[%clk 0:00:15.7]} 49... Kg8 {[%clk 0:00:12.5]} 50. d7 {[%clk 0:00:11.4]}
50... Rxc5+ {[%clk 0:00:13.2]} 51. Kb6 {[%clk 0:00:10.9]} 1-0